Cogmind - Beta 15 @@@ ROGUE MODE // 2025.06.01 @ 14:32:33 Player: Nisakard Result: Destroyed by AX-V9X(R) with Subdweller Machine Gun Performance ------------- Evolutions (0) 0 Regions Visited (2) 400 Robots Destroyed (28) 140 Value Destroyed (547) 547 Prototype IDs (0) 0 Alien Tech Used (0) 0 Bonus (0) 0 TOTAL SCORE: 1087 Bonus ------- None Cogmind --------- Core Integrity 0/250 Matter 300/300 Energy 100/100 System Corruption 0% Temperature Cool (0) Movement Core (350) Ox6 Location -10/Subcaves Parts ------- > --- POWER (1) -------- (None) > --- PROPULSION (2) --- (None) > --- UTILITY (2) ------ Large Storage Unit Hacking Suite > --- WEAPON (2) ------- (None) > --- INVENTORY (15) --- Ion Engine Ion Engine Large Battery (200) Signal Interpreter Light EM Pulse Cannon Light EM Pulse Cannon Datajack Datajack Plasma Cutter Plasma Cutter Peak State ------------ > --- POWER ------------ Ion Engine > --- PROPULSION ------- Wheel Compact Wheel > --- UTILITY ---------- Small Storage Unit Hacking Suite > --- WEAPON ----------- Spread Laser Spread Laser > --- INVENTORY -------- Ion Engine Ion Engine Light Treads Light Treads Spread Laser Spread Laser Assault Rifle Light Assault Rifle [Rating: 12] Favorites ----------- Power Ion Engine Engine Ion Engine Propulsion Light Treads Treads Light Treads Wheel Compact Wheel Utility Hacking Suite Storage Medium Storage Unit Processor Improved Targeting Computer Hackware Hacking Suite Weapon Spread Laser Energy Gun Spread Laser Energy Cannon Light EM Pulse Cannon Ballistic Gun Assault Rifle Special Weapon Plasma Cutter Build | -11 -10 -10 ------- Run | Yrd Mat Sub Slots Evolved . | . . . Power . | . . . Propulsion . | . . . Utility . | . . . Weapon . | . . . Parts Attached 25 | 7 16 2 Power 2 | 1 1 . Engine 2 | 1 1 . Core . | . . . Reactor . | . . . Propulsion 5 | 2 3 . Treads 2 | . 2 . Leg . | . . . Wheel 3 | 2 1 . Hover . | . . . Flight . | . . . Utility 5 | 1 4 . Device . | . . . Storage 3 | 1 2 . Processor 1 | . 1 . Hackware 1 | . 1 . Protection . | . . . Artifact . | . . . Weapon 13 | 3 8 2 Energy Gun 5 | 1 4 . Energy Cannon 2 | . . 2 Ballistic Gun 2 | 2 . . Ballistic Cannon . | . . . Launcher . | . . . Special Weapon 4 | . 4 . Impact Weapon . | . . . Slashing Weapon . | . . . Piercing Weapon . | . . . Special Melee Weapon . | . . . Unidentified Prototypes . | . . . Parts Lost 7 | . 2 5 Power 1 | . . 1 Propulsion 2 | . . 2 Utility . | . . . Weapon 4 | . 2 2 Highest Loss Streak 5 | . 2 5 To Critical Strikes 1 | . . 1 Average Backups 8 | 2 8 10 Power 1 | . 1 2 Propulsion . | 1 . . Utility 1 | . 1 2 Weapon 2 | . 2 2 Tool/Special . | . . . Unused Backups 10 | 1 1 8 Power 3 | 1 . 2 Propulsion . | . . . Utility 3 | . 1 2 Weapon 2 | . . 2 Tool/Special 2 | . . 2 Average Slot Usage (%) 98 | . 98 99 Engine 13 | . 14 13 Treads 21 | . 20 28 Wheel 6 | . 7 . Storage 14 | . 14 14 Hackware 12 | . 12 14 Energy Gun 15 | . 17 . Energy Cannon 2 | . . 27 Special Weapon 8 | . 9 . Peak Build Rating 12 | 6 12 12 Average Rating 11 | 5 11 11 On Entrance 6 | . 6 12 Naked Turns . | . . . Heaviest Build 33 | 14 27 33 Greatest Support 40 | 26 40 40 Greatest Overweight (x) 6 | . 2 6 Average Overweight (x) . | . . . Largest Inventory Capacity 15 | 8 15 15 Average Capacity 11 | 6 11 15 Most Carried 11 | 5 11 10 Average Carried 8 | 2 8 10 Final Capacity 15 | 8 15 15 Final Carried 10 | 5 10 10 Class Distribution -------------------- 100% | Mutant Dominant Class ---------------- Mutant | -10/Materials Mutant | -10/Subcaves Resources | -11 -10 -10 ----------- Run | Yrd Mat Sub Matter Collected 461 | 282 179 . Remotely . | . . . Salvage Created 757 | 58 699 . Parts 54 | 3 51 . Haulers Intercepted 2 | . 2 . Recyclers Shooed 2 | . 2 . Parts Field Recycled . | . . . Retrieved Matter . | . . . Parts Self-Destructed . | . . . Prevented . | . . . Kills | -11 -10 -10 ------- Run | Yrd Mat Sub Combat Hostiles Destroyed 17 | . 17 . Guns 14 | . 14 . Cannons 3 | . 3 . Classes Destroyed 8 | 1 7 . Worker 1 | . 1 . Hauler 2 | . 2 . Recycler 3 | 1 2 . Mechanic 1 | . 1 . Operator 2 | . 2 . Watcher 2 | . 2 . Swarmer 6 | . 6 . Grunt 11 | . 11 . Best Kill Streak 5 | 1 5 . Combat Bots Only 4 | . 4 . Max Kills in Single Turn 2 | 1 2 . Gunslinging . | . . . Exploded . | . . . Melee . | . . . Uniques/NPCs Destroyed . | . . . Combat | -11 -10 -10 -------- Run | Yrd Mat Sub Hostile Shots Fired 102 | . 57 45 Missed 32 | . 14 18 Hits 70 | . 43 27 Projectile 70 | . 43 27 Critical Strikes 1 | . . 1 Damage Taken 1058 | . 453 605 Core 268 | . 111 157 Absorbed by Shields . | . . . Regen/Repaired (Parts) 40 | . 40 . Core Remaining (%) 100 | 100 . . Volleys Fired 66 | 4 58 4 Largest 2 | 2 2 2 Hottest 130 | 60 130 112 Shots Fired 126 | 8 110 8 Gun 96 | 8 88 . Cannon 8 | . . 8 Launcher . | . . . Special 22 | . 22 . Kinetic 8 | 4 4 . Thermal 106 | . 106 . Explosive . | . . . Electromagnetic 12 | 4 . 8 Robot Hit Streak 14 | 3 14 6 Robot Miss Streak 9 | 3 9 1 Penetration Max . | . . . Secondary Targets . | . . . Shots Hit Robots 99 | 5 87 7 Core Hits 104 | 2 102 . Critical Kills . | . . . Critical Parts Destroyed . | . . . Critical Strikes . | . . . Melee Attacks . | . . . Impact . | . . . Slashing . | . . . Piercing . | . . . Sneak Attacks . | . . . Combat Hostiles . | . . . Follow-up Attacks . | . . . Damage Inflicted 1263 | 66 1107 90 Guns 1016 | 66 950 . Cannons 79 | . . 79 Explosions . | . . . Melee . | . . . Ramming 11 | . . 11 Kinetic 47 | 26 21 . Thermal 1086 | . 1086 . Explosive . | . . . Electromagnetic 119 | 40 . 79 Impact . | . . . Slashing . | . . . Piercing . | . . . Highest Corruption . | . . . Average Corruption . | . . . Corruption Purged . | . . . Corruption Blocked . | . . . Overload Shots . | . . . Overflow Damage . | . . . Projectiles . | . . . Explosions . | . . . Melee . | . . . Knockbacks 1 | . . 1 Impact 1 | . . 1 Kinetic . | . . . Secondary . | . . . Self-Inflicted Damage . | . . . Shots . | . . . Rammed 6 | . . 6 Targets Rammed 6 | . . 6 Kicked . | . . . Crushed . | . . . Highest Temperature 419 | . 419 . Average Temperature 130 | . 130 . Received Heat Transfer 198 | . 198 . Effects 6 | . 6 . Shutdowns 1 | . 1 . Energy Bleed 2 | . 2 . Interference 1 | . 1 . Short Circuit 1 | . 1 . Damage (minor) 1 | . 1 . Siege Activations . | . . . Martial Activations . | . . . Shielding Activations . | . . . Robots Disrupted . | . . . Combat Hostiles . | . . . Robots Corrupted . | . . . Combat Hostiles . | . . . Parts Fried . | . . . Impact Corruptions . | . . . Robots Melted . | . . . Combat Hostiles . | . . . Parts Melted 3 | . 3 . Heat Transferred 1678 | . 1678 . Parts Sabotaged . | . . . Parts Stolen . | . . . Parts Stripped . | . . . Power Chain Reactions . | . . . Alert | -11 -10 -10 ------- Run | Yrd Mat Sub Maximum Alert Level . | . . . Low Security (%) 100 | 100 100 . Level 1 . | . . . Level 2 . | . . . Level 3 . | . . . Level 4 . | . . . Level 5 . | . . . High Security . | . . . Max Security . | . . . Peak Influence 167 | 5 167 . Initial . | . . . Average 35 | . 37 . Influence Increases 492 | 5 487 . Destroy 0b10 Robot/C 340 | . 340 . Destroy 0b10 Robot/NC 55 | 5 50 . Destroy Leader 68 | . 68 . Successful Hack 29 | . 29 . Influence Decreases 492 | 5 487 . Time Decay 341 | 5 336 . Lost Part 20 | . 20 . Purge Threat 131 | . 131 . Squads Dispatched 3 | . 3 . Investigation 1 | . 1 . Extermination . | . . . Reinforcement 2 | . 2 . Assault . | . . . Garrison . | . . . Intercept . | . . . Searches Triggered . | . . . Construction Impeded . | . . . Haulers Reinforced . | . . . Active Scanning Responses . | . . . Cargo Convoy Interrupts . | . . . Stealth | -11 -10 -10 --------- Run | Yrd Mat Sub Distress Signals 2 | . 2 . Communications Jammed . | . . . Distress Signals . | . . . Times Spotted 31 | . 27 4 Peak Tracking Total 4 | . 3 4 Tactical Retreats . | . . . Traps | -11 -10 -10 ------- Run | Yrd Mat Sub Traps Triggered 3 | . 3 . Indirectly . | . . . Trap Hack Attempts . | . . . Triggered . | . . . Disarmed . | . . . Reprogrammed . | . . . Reused . | . . . Traps Extracted . | . . . Installed . | . . . Triggered . | . . . Machines | -11 -10 -10 ---------- Run | Yrd Mat Sub Machines Disabled . | . . . Max in Single Turn . | . . . Machines Repaired . | . . . Machines Dismantled . | . . . Machines Sabotaged . | . . . Overloaded Fab Kills . | . . . Hacking | -11 -10 -10 --------- Run | Yrd Mat Sub Machines Accessed 9 | . 9 . Terminals 6 | . 6 . Fabricators . | . . . Repair Stations 1 | . 1 . Recycling Units 2 | . 2 . Scanalyzers . | . . . Garrison Access . | . . . Total Hacks 27 | . 27 . Successful 13 | . 13 . Failed 14 | . 14 . Catastrophic 1 | . 1 . Database Lockouts . | . . . Manual 14 | . 14 . Terminals 22 | . 22 . Fabricators . | . . . Repair Stations 2 | . 2 . Recycling Units 3 | . 3 . Scanalyzers . | . . . Garrison Access . | . . . Terminal Hacks 8 | . 8 . Record 1 | . 1 . Robot Analysis 1 | . 1 . Terminal Index 1 | . 1 . Unreport Threat 3 | . 3 . Dispatch Records 1 | . 1 . Maintenance Status 1 | . 1 . Fabricator Hacks . | . . . Repair Station Hacks 2 | . 2 . Scan Component 1 | . 1 . Repair 1 | . 1 . Recycling Unit Hacks 3 | . 3 . Report Inventory 2 | . 2 . Retrieve Matter 1 | . 1 . Scanalyzer . | . . . Garrison Access Hacks . | . . . Unauthorized Hacks . | . . . Terminals . | . . . Fabricators . | . . . Repair Stations . | . . . Recycling Units . | . . . Scanalyzers . | . . . Garrison Access . | . . . Data Cores Recovered . | . . . Used . | . . . Hacking Detections 7 | . 7 . Full Trace Events . | . . . Feedback Events . | . . . Feedback Blocked . | . . . Robot Schematics Acquired . | . . . Robots Built . | . . . Authchips . | . . . Time . | . . . Total Robot Build Rating . | . . . Part Schematics Acquired . | . . . Parts Built . | . . . Authchips . | . . . Time . | . . . Total Part Build Rating . | . . . Parts Repaired 1 | . 1 . Time 32 | . 32 . Parts Recycled . | . . . Recycled Matter . | . . . Retrieved Matter 83 | . 83 . Retrieved Components . | . . . Parts Scanalyzed . | . . . Part Schematics Acquired . | . . . Parts Damaged . | . . . Bothacking | -11 -10 -10 ------------ Run | Yrd Mat Sub Used RIF Installer . | . . . Robots Hacked . | . . . Non-combat . | . . . Combat . | . . . Robot Hacks Applied . | . . . Relay Couplers Released . | . . . Fabnet Peak Effective % . | . . . Robots Rewired . | . . . Allies Hacked . | . . . Hacks Repelled . | . . . Allies | -11 -10 -10 -------- Run | Yrd Mat Sub Total Allies . | . . . Largest Group . | . . . Highest-Rated Group . | . . . Highest-Rated Ally . | . . . Total Orders . | . . . Ally Attacks . | . . . Total Damage . | . . . Kills . | . . . Allies Corrupted . | . . . Allies Melted . | . . . Intel | -11 -10 -10 ------- Run | Yrd Mat Sub Active Infowar (turns) . | . . . Robot Analysis Total 1 | . 1 . Derelict Logs Recovered . | . . . Drone Launches . | . . . Drone Recoveries . | . . . Exploration | -11 -10 -10 ------------- Run | Yrd Mat Sub Turns Passed 1857 | 94 1601 162 Spaces Moved 1031 | 75 876 80 Core 8 | 7 . 1 Treads 709 | . 630 79 Legs . | . . . Wheels 314 | 68 246 . Hover . | . . . Flight . | . . . Fastest Speed 50 | 50 90 160 Average Speed 138 | 86 141 162 Slowest Speed 350 | 100 240 350 Overloaded Moves . | . . . Propulsion Burnouts . | . . . Robots Hopped . | . . . Potential Cave-ins . | . . . Cave-ins Triggered . | . . . Exploration Rate (%) 33 | 4 88 9 Regions Visited 2 Branch Regions 1 Pre-discovered Areas . | . . . Known Exits Taken . | . . . Unknown Exits Taken 2 | 1 1 . Scrap Searched . | . . . Spaces Dug . | . . . Terrain Destroyed . | . . . Melee . | . . . Projectile . | . . . AOE . | . . . Terrain Rammed . | . . . Walls Destroyed . | . . . Machines Disabled . | . . . Actions | -11 -10 -10 --------- Run | Yrd Mat Sub Total 1298 | 93 1104 101 Wait 125 | . 116 9 Move 1029 | 74 875 80 Hop . | . . . Pick Up 25 | 7 18 . Fast Attach 9 | 5 4 . Attach 5 | 1 4 . Detach . | . . . Swap 16 | 1 13 2 Drop 15 | 1 14 . Fire 66 | 4 58 4 Melee . | . . . Ram . | . . . Kick . | . . . Crush 6 | . . 6 Escape Stasis . | . . . Rewire . | . . . Trap . | . . . Miscellaneous 2 | . 2 . Route ------- -11/Scrapyard -10/Materials (discovered 4 exits: [*Mat x3] / [*Sub]) -10/Subcaves History --------- Turn | Location | Event 43 | -11/Scrapyard | Discovered new exit (range 15) 95 | -11/Scrapyard | Entered Materials 301 | -10/Materials | Build established: Mutant 619 | -10/Materials | Repaired Spread Laser 627 | -10/Materials | Discovered new exit (range 16) 666 | -10/Materials | Discovered new exit (range 11) 867 | -10/Materials | Discovered new exit (range 10) 1108 | -10/Materials | Discovered new exit (range 11) 1696 | -10/Materials | Entered Subcaves 1806 | -10/Subcaves | A Subdweller sparked back to life 1806 | -10/Subcaves | A Subdweller sparked back to life 1806 | -10/Subcaves | A Subdweller sparked back to life 1809 | -10/Subcaves | Core integrity fell below 50% 1855 | -10/Subcaves | Core integrity fell below 20% 1858 | -10/Subcaves | Destroyed by AX-V9X(R) with Subdweller Machine Gun Last Messages --------------- 01721_ BW-YXW(u) builds Twisted Machinery. 01806_ JB-TDS(R) creaks and sparks as it begins to move. 01806_ AX-V9X(R) creaks and sparks as it begins to move. 01806_ XG-MGL(R) creaks and sparks as it begins to move. 01845_ Slammed into XG-MGL(R). 01847_ Slammed into AX-V9X(R). 01848_ Critical hit (Destroy). 01848_ Ion Engine destroyed. 01848_ Slammed into XG-MGL(R). 01848_ XG-MGL(R) knocked back. 01850_ Slammed into AX-V9X(R). 01852_ Slammed into JB-TDS(R). 01853_ Lgt. EM Pulse Cannon destroyed. 01855_ Lgt. Treads destroyed. 01855_ Slammed into O1-IM4(R). 01856_ Lgt. Treads destroyed. 01856_ Lgt. EM Pulse Cannon destroyed. Map ----- +----------------------------------------------------+ | ????????????????????????????????????????????????? | | ????????????????????????????????????????????????? | | ????????????????????????????????????????????????? | | ????????????????????????????????????????????????? | | ????????????????????????????????????????????????? | | ????????????????????????????????????????????????? | | ????????????????????????????????????????????????? | | ????????????????????????????????????????????????? | | ????????????????????????????????????????????????? | | ????????????????????????????????????????????????? | | ??????????????????????????????????###?????????? ? | | ???????????????????##????????????## ##????????? ? | | ???????????????????# ????????????# ##???????? # | | ??????????????????## ??????????## #???????? # | | ?????????????????## ?????????## #???????? | | ?????????????????? #?######## ##??????? | | ???????????????????# ## ####???? | | ???????????????????# ##?## | | ???????????????????# ### | | ????????????????????# ## | | ???????????????????????# | | ???????????????????????# | | ????????????????????#### & # | | ????????????????????# < < ## | | ?????????????????##### ## | | ????????????????## ## R@%R < " | | ???????????????## % ##""& #### | | ???????????????# RR #######??###""" | | ???????????????## ### ### ##?????????##""" | | ????????????????###?# ## #?###??????????# """ | | ???????????????????# ### #??????????????# | | ??????????????????# #? ##??????????????##### | | ?????????????????# ? ##??????????????????# | | ?????????????????# ???????????????????## " | | ????????????????? ??????????????????## " | | ????????????????# ??????????????????# " | | ????????????????### ??????????????????# " | | ??????????????????## ###??????????????????##### | | ???????????????????# #????????????????????????# | | ???????????????????# #????????????????????????? | | ???????????????????## ?????????????????????????? | | ?????????????????????##?????????????????????????? | | ????????????????????????????????????????????????? | | ????????????????????????????????????????????????? | | ????????????????????????????????????????????????? | | ????????????????????????????????????????????????? | | ????????????????????????????????????????????????? | | ????????????????????????????????????????????????? | | ????????????????????????????????????????????????? | | ????????????????????????????????????????????????? | +----------------------------------------------------+ Best States ------------- Heat Dissipation 25 Energy Generation 10 Energy Capacity 250 Matter Stores 300 Matter Capacity 300 Sight Range 16 Terrain Scan Density 10 Evasion (%) 42 Targeting Accuracy 6 Recoil Reduction 2 Offensive Hacking 10 Item Schematics ----------------- None Robot Schematics ------------------ None Fabricated ------------ Nothing Repaired ---------- Spread Laser | 50% | -10/Materials Alien Tech Used ----------------- None Achievements -------------- None Challenges ------------ None Game ------ Seed PlatingConcussiveNanovents Manual? 0 Play Time 00:14:04 Cumulative 4.2 hours Start 2025.06.01 @ 14:19:16 End 2025.06.01 @ 14:32:33 Sessions 1 Manual Loads 0 Difficulty Rogue Special Mode None Game No. 8 Rogue 8 Adventurer 0 Explorer 0 Win Type - Total 0 Types 0/0/0/0/0/0/0/0/0/0 Lore% 15 Gallery% 7 Achievement% 22 Wizard Run 0 Options --------- Layout 1 ASCII 0 Keyboard 0 Movement Numpad Keybinds 0 Fullscreen 2 Font 24/Smallcaps Map View 50x35 Zoom Use 0% Tactical HUD 1 Map Filters NONE Filters NONE Steam 1 RUN: 8bc45cee-cc89-44c9-8f3b-dc51f0c2419b